fUST/lending_fUST_20260603
["ID","MTS","AMOUNT","RATE_DAILY","PERIOD"]
[423819548,1780435840000,-500.0,0.00014246,2]
[423819552,1780435840000,-642.67033973,0.00014246,2]
[423819547,1780435840000,-500.0,0.00014246,2]
[423819543,1780435840000,-500.0,0.00014246,2]
[423819551,1780435840000,-500.0,0.00014246,2]
[423819545,1780435840000,-500.0,0.00014246,2]
[423819553,1780435840000,-2129.77,0.00014246,2]
[423819542,1780435840000,-500.0,0.00014246,2]
[423819544,1780435840000,-500.0,0.00014246,2]
[423819541,1780435840000,-500.0,0.00014246,2]
[423819546,1780435840000,-500.0,0.00014246,2]
[423819627,1780435841000,-558.53,0.0001452,2]
[423819641,1780435841000,-2219.09572962,0.00014763,2]
[423819634,1780435841000,-500.0,0.0001452,2]
[423819626,1780435841000,-500.0,0.0001452,2]
[423819624,1780435841000,-500.0,0.0001452,2]
[423819628,1780435841000,-500.0,0.0001452,2]
[423819631,1780435841000,-500.0,0.0001452,2]
[423819632,1780435841000,-500.0,0.0001452,2]
[423819622,1780435841000,-500.0,0.0001452,2]
[423819630,1780435841000,-500.0,0.0001452,2]
[423819629,1780435841000,-500.0,0.0001452,2]
[423819642,1780435841000,-500.0,0.00014794,2]
[423819625,1780435841000,-500.0,0.0001452,2]
[423819643,1780435841000,-500.0,0.00014794,2]
[423819651,1780435841000,-500.0,0.00014794,2]
[423819644,1780435841000,-500.0,0.00014794,2]
[423819635,1780435841000,-462.46,0.0001452,2]
[423819636,1780435841000,-500.0,0.0001452,2]
[423819639,1780435841000,-500.0,0.0001452,2]
[423819645,1780435841000,-500.0,0.00014794,2]
[423819638,1780435841000,-500.0,0.0001452,2]
[423819640,1780435841000,-249.0,0.00014597,2]
[423819637,1780435841000,-500.0,0.0001452,2]
[423819646,1780435841000,-500.0,0.00014794,2]
[423819648,1780435841000,-500.0,0.00014794,2]
[423819650,1780435841000,-500.0,0.00014794,2]
[423819649,1780435841000,-500.0,0.00014794,2]
[423819647,1780435841000,-500.0,0.00014794,2]
[423819623,1780435841000,-500.0,0.0001452,2]
[423819633,1780435841000,-500.0,0.0001452,2]
[423819621,1780435841000,-500.0,0.0001452,2]
[423819592,1780435841000,-500.0,0.0001452,2]
[423819615,1780435841000,-500.0,0.0001452,2]
[423819653,1780435841000,-500.0,0.00014794,2]
[423819593,1780435841000,-229.12,0.0001452,2]
[423819594,1780435841000,-500.0,0.0001452,2]
[423819588,1780435841000,-500.0,0.0001452,2]
[423819590,1780435841000,-500.0,0.0001452,2]
[423819591,1780435841000,-500.0,0.0001452,2]
[423819589,1780435841000,-500.0,0.0001452,2]
[423819595,1780435841000,-500.0,0.0001452,2]
[423819597,1780435841000,-500.0,0.0001452,2]
[423819596,1780435841000,-500.0,0.0001452,2]
[423819598,1780435841000,-194.89,0.0001452,2]
[423819604,1780435841000,-500.0,0.0001452,2]
[423819603,1780435841000,-500.0,0.0001452,2]
[423819600,1780435841000,-500.0,0.0001452,2]
[423819601,1780435841000,-238.16,0.0001452,2]
[423819605,1780435841000,-500.0,0.0001452,2]
[423819606,1780435841000,-500.0,0.0001452,2]
[423819611,1780435841000,-500.0,0.0001452,2]
[423819613,1780435841000,-500.0,0.0001452,2]
[423819610,1780435841000,-500.0,0.0001452,2]
[423819614,1780435841000,-500.0,0.0001452,2]
[423819612,1780435841000,-500.0,0.0001452,2]
[423819609,1780435841000,-500.0,0.0001452,2]
[423819620,1780435841000,-500.0,0.0001452,2]
[423819618,1780435841000,-2129.77,0.0001452,2]
[423819607,1780435841000,-500.0,0.0001452,2]
[423819617,1780435841000,-500.0,0.0001452,2]
[423819608,1780435841000,-500.0,0.0001452,2]
[423819616,1780435841000,-500.0,0.0001452,2]
[423819602,1780435841000,-500.0,0.0001452,2]
[423819599,1780435841000,-500.0,0.0001452,2]
[423819619,1780435841000,-500.0,0.0001452,2]
[423819652,1780435841000,-218.48,0.00014794,2]
[423819654,1780435841000,-500.0,0.00014794,2]
[423819655,1780435841000,-500.0,0.00014794,2]
[423819698,1780435841000,-500.0,0.00015068,2]
[423819691,1780435841000,-500.0,0.00014794,2]
[423819694,1780435841000,-2129.77,0.00015068,2]
[423819695,1780435841000,-500.0,0.00015068,2]
[423819693,1780435841000,-500.0,0.00014794,2]
[423819689,1780435841000,-500.0,0.00014794,2]
[423819696,1780435841000,-191.85,0.00015068,2]
[423819692,1780435841000,-500.0,0.00014794,2]
[423819697,1780435841000,-500.0,0.00015068,2]
[423819701,1780435841000,-500.0,0.00015068,2]
[423819703,1780435841000,-500.0,0.00015342,2]
[423819702,1780435841000,-2129.77,0.00015342,2]
[423819713,1780435841000,-500.0,0.00015616,2]
[423819705,1780435841000,-500.0,0.00015342,2]
[423819699,1780435841000,-500.0,0.00015068,2]
[423819704,1780435841000,-500.0,0.00015342,2]
[423819709,1780435841000,-2129.77,0.00015616,2]
[423819712,1780435841000,-500.0,0.00015616,2]
[423819715,1780435841000,-500.0,0.00015616,2]
[423819706,1780435841000,-500.0,0.00015342,2]
[423819707,1780435841000,-500.0,0.00015342,2]
[423819710,1780435841000,-500.0,0.00015616,2]
[423819711,1780435841000,-500.0,0.00015616,2]
[423819716,1780435841000,-415.07788803,0.00015722,2]
[423819718,1780435841000,-500.0,0.0001589,2]
[423819717,1780435841000,-2129.77,0.0001589,2]
[423819719,1780435841000,-500.0,0.0001589,2]
[423819720,1780435841000,-500.0,0.0001589,2]
[423819721,1780435841000,-418.75,0.0001589,2]
[423819657,1780435841000,-214.56,0.00014794,2]
[423819714,1780435841000,-500.0,0.00015616,2]
[423819690,1780435841000,-500.0,0.00014794,2]
[423819708,1780435841000,-500.0,0.00015342,2]
[423819688,1780435841000,-500.0,0.00014794,2]
[423819700,1780435841000,-500.0,0.00015068,2]
[423819656,1780435841000,-500.0,0.00014794,2]
[423819659,1780435841000,-500.0,0.00014794,2]
[423819665,1780435841000,-500.0,0.00014794,2]
[423819666,1780435841000,-500.0,0.00014794,2]
[423819669,1780435841000,-500.0,0.00014794,2]
[423819658,1780435841000,-500.0,0.00014794,2]
[423819670,1780435841000,-500.0,0.00014794,2]
[423819671,1780435841000,-500.0,0.00014794,2]
[423819668,1780435841000,-500.0,0.00014794,2]
[423819661,1780435841000,-500.0,0.00014794,2]
[423819663,1780435841000,-584.55,0.00014794,2]
[423819660,1780435841000,-389.96272982,0.00014794,2]
[423819662,1780435841000,-500.0,0.00014794,2]
[423819664,1780435841000,-500.0,0.00014794,2]
[423819667,1780435841000,-201.15247983,0.00014794,2]
[423819674,1780435841000,-2129.77,0.00014794,2]
[423819687,1780435841000,-500.0,0.00014794,2]
[423819672,1780435841000,-500.0,0.00014794,2]
[423819679,1780435841000,-500.0,0.00014794,2]
[423819681,1780435841000,-500.0,0.00014794,2]
[423819678,1780435841000,-500.0,0.00014794,2]
[423819677,1780435841000,-500.0,0.00014794,2]
[423819680,1780435841000,-500.0,0.00014794,2]
[423819685,1780435841000,-500.0,0.00014794,2]
[423819686,1780435841000,-500.0,0.00014794,2]
[423819684,1780435841000,-500.0,0.00014794,2]
[423819676,1780435841000,-500.0,0.00014794,2]
[423819673,1780435841000,-500.0,0.00014794,2]
[423819683,1780435841000,-500.0,0.00014794,2]
[423819682,1780435841000,-568.75,0.00014794,2]
[423819675,1780435841000,-500.0,0.00014794,2]
[423819756,1780435842000,-500.0,0.00017534,2]
[423819754,1780435842000,-2129.77,0.00017534,2]
[423819735,1780435842000,-500.0,0.00016438,2]
[423819755,1780435842000,-500.0,0.00017534,2]
[423819745,1780435842000,-500.0,0.00016986,2]
[423819757,1780435842000,-500.0,0.00017534,2]
[423819736,1780435842000,-176.45,0.00016438,2]
[423819758,1780435842000,-290.38382964,0.00017565,2]
[423819753,1780435842000,-500.0,0.0001726,2]
[423819747,1780435842000,-500.0,0.00016986,2]
[423819748,1780435842000,-500.0,0.00016986,2]
[423819750,1780435842000,-500.0,0.0001726,2]
[423819751,1780435842000,-500.0,0.0001726,2]
[423819752,1780435842000,-500.0,0.0001726,2]
[423819749,1780435842000,-2129.77,0.0001726,2]
[423819742,1780435842000,-500.0,0.00016712,2]
[423819759,1780435842000,-173.85551822,0.00017587,2]
[423819746,1780435842000,-500.0,0.00016986,2]
[423819739,1780435842000,-2129.77,0.00016712,2]
[423819727,1780435842000,-500.0,0.00016164,2]
[423819740,1780435842000,-500.0,0.00016712,2]
[423819760,1780435842000,-327.38900683,0.00017587,2]
[423819726,1780435842000,-2129.77,0.00016164,2]
[423819725,1780435842000,-160.0,0.00016152,2]
[423819728,1780435842000,-500.0,0.00016164,2]
[423819729,1780435842000,-500.0,0.00016164,2]
[423819722,1780435842000,-500.0,0.0001589,2]
[423819724,1780435842000,-160.0,0.00016152,2]
[423819723,1780435842000,-500.0,0.0001589,2]
[423819730,1780435842000,-500.0,0.00016164,2]
[423819732,1780435842000,-2129.77,0.00016438,2]
[423819731,1780435842000,-500.0,0.00016164,2]
[423819734,1780435842000,-500.0,0.00016438,2]
[423819733,1780435842000,-500.0,0.00016438,2]
[423819743,1780435842000,-500.0,0.00016712,2]
[423819737,1780435842000,-500.0,0.00016438,2]
[423819738,1780435842000,-282.0,0.00016597,2]
[423819741,1780435842000,-500.0,0.00016712,2]
[423819744,1780435842000,-2129.77,0.00016986,2]
[423819767,1780435842000,-186.41772594,0.00017808,2]
[423819780,1780435842000,-315.0,0.00018597,2]
[423819762,1780435842000,-444.0,0.00017792,2]
[423819786,1780435842000,-969.81,0.00018904,2]
[423819788,1780435842000,-500.0,0.00019178,2]
[423819789,1780435842000,-294.96157509,0.00019178,2]
[423819791,1780435842000,-943.87704028,0.00019178,2]
[423819790,1780435842000,-530.93083516,0.00019178,2]
[423819782,1780435842000,-500.0,0.0001863,2]
[423819792,1780435842000,-969.81,0.00019178,2]
[423819785,1780435842000,-500.0,0.00018904,2]
[423819794,1780435842000,-341.75589512,0.0001926,2]
[423819805,1780435842000,-108653.415316,0.00019695,2]
[423819793,1780435842000,-189.86438618,0.0001926,2]
[423819796,1780435842000,-2129.77,0.00019452,2]
[423819795,1780435842000,-607.56603577,0.0001926,2]
[423819798,1780435842000,-500.0,0.00019452,2]
[423819802,1780435842000,-300.0,0.00019589,3]
[423819800,1780435842000,-969.81,0.00019452,2]
[423819804,1780435842000,-215.46321095,0.000196,2]
[423819784,1780435842000,-2129.77,0.00018904,2]
[423819787,1780435842000,-2129.77,0.00019178,2]
[423819781,1780435842000,-2129.77,0.0001863,2]
[423819766,1780435842000,-500.0,0.00017808,2]
[423819764,1780435842000,-185.341,0.00017792,2]
[423819763,1780435842000,-743.0,0.00017792,2]
[423819765,1780435842000,-2129.77,0.00017808,2]
[423819769,1780435842000,-160.49399893,0.00017916,2]
[423819779,1780435842000,-500.0,0.00018356,2]
[423819783,1780435842000,-969.81,0.0001863,2]
[423819770,1780435842000,-211.97622216,0.00017916,2]
[423819771,1780435842000,-580.76765928,0.00017916,2]
[423819806,1780435842000,-80.04872,0.00017534,2]
[423819768,1780435842000,-500.0,0.00017808,2]
[423819776,1780435842000,-175.2,0.00018082,2]
[423819774,1780435842000,-2129.77,0.00018082,2]
[423819775,1780435842000,-500.0,0.00018082,2]
[423819773,1780435842000,-196.262,0.00018082,2]
[423819777,1780435842000,-171.45948956,0.00018337,2]
[423819778,1780435842000,-2129.77,0.00018356,2]
[423819772,1780435842000,-170.29820994,0.00017938,2]
[423819761,1780435842000,-2206.0,0.00017792,2]
[423819837,1780435846000,-683.06644594,0.00019695,2]
[423819836,1780435846000,-541.25,0.00017808,2]
[423819835,1780435846000,-419.95128,0.00017534,2]
[423819834,1780435846000,-1836.0,0.00017303,2]
[423819842,1780435934000,-276.91529881,0.00013597,2]
[423819913,1780436898000,5000.0,0.00023395,30]
[423819976,1780437032000,-152.0,0.00011922,7]
[423820016,1780437032000,-500.0,0.00013698,2]
[423820054,1780437032000,-500.0,0.00013698,2]
[423820026,1780437032000,-500.0,0.00013698,2]
[423820020,1780437032000,-500.0,0.00013698,2]
[423820022,1780437032000,-502.62131229,0.00013698,2]
[423820018,1780437032000,-500.0,0.00013698,2]
[423820028,1780437032000,-500.0,0.00013698,2]
[423820031,1780437032000,-500.84777848,0.00013698,2]
[423820024,1780437032000,-500.79990168,0.00013698,2]
[423820030,1780437032000,-502.00050463,0.00013698,2]
[423820037,1780437032000,-500.0,0.00013698,2]
[423820035,1780437032000,-500.0,0.00013698,2]
[423820039,1780437032000,-500.0,0.00013698,2]
[423820043,1780437032000,-500.0,0.00013698,2]
[423820041,1780437032000,-500.0,0.00013698,2]
[423820052,1780437032000,-500.0,0.00013698,2]
[423820046,1780437032000,-500.0,0.00013698,2]
[423820045,1780437032000,-500.0,0.00013698,2]
[423820033,1780437032000,-503.5913221,0.00013698,2]
[423819973,1780437032000,-2497.58912686,0.00011659,2]
[423820012,1780437032000,-500.0,0.00013698,2]
[423820006,1780437032000,-500.0,0.00013698,2]
[423819975,1780437032000,-257.43680816,0.00011777,2]
[423819989,1780437032000,-500.0,0.00013697,2]
[423819991,1780437032000,-500.0,0.00013697,2]
[423819993,1780437032000,-500.0,0.00013697,2]
[423819978,1780437032000,-151.02,0.00012,2]
[423819995,1780437032000,-500.0,0.00013697,2]
[423819980,1780437032000,-270.13533131,0.00012354,2]
[423819987,1780437032000,-300.0,0.00013696,2]
[423820010,1780437032000,-500.0,0.00013698,2]
[423819985,1780437032000,-300.0,0.00013696,2]
[423819999,1780437032000,-643.20566208,0.00013697,2]
[423820000,1780437032000,-500.0,0.00013698,2]
[423819982,1780437032000,-151.02,0.000135,2]
[423819997,1780437032000,-500.0,0.00013697,2]
[423820002,1780437032000,-500.0,0.00013698,2]
[423820004,1780437032000,-500.0,0.00013698,2]
[423820008,1780437032000,-500.0,0.00013698,2]
[423820014,1780437032000,-500.0,0.00013698,2]
[423819984,1780437032000,-827.0,0.00013696,2]
[423820050,1780437032000,-500.0,0.00013698,2]
[423820088,1780437032000,-499.42056717,0.00013698,2]
[423820058,1780437032000,-500.0,0.00013698,2]
[423820094,1780437032000,-500.0,0.00013698,2]
[423820096,1780437032000,-1863.65,0.00013698,2]
[423820102,1780437032000,-586.51,0.00013698,2]
[423820106,1780437032000,-500.0,0.00013698,2]
[423820101,1780437032000,-500.0,0.00013698,2]
[423820110,1780437032000,-1279.87,0.00013698,2]
[423820108,1780437032000,-500.0,0.00013698,2]
[423820112,1780437032000,-631.99,0.00013698,2]
[423820118,1780437032000,-500.0,0.00013698,2]
[423820114,1780437032000,-500.0,0.00013698,2]
[423820116,1780437032000,-500.0,0.00013698,2]
[423820124,1780437032000,-500.0,0.00013698,2]
[423820123,1780437032000,-500.0,0.00013698,2]
[423820125,1780437032000,-500.0,0.00013698,2]
[423820120,1780437032000,-871.26,0.00013698,2]
[423820122,1780437032000,-500.0,0.00013698,2]
[423820126,1780437032000,-500.0,0.00013698,2]
[423820127,1780437032000,-500.0,0.00013698,2]
[423820048,1780437032000,-500.79961972,0.00013698,2]
[423820084,1780437032000,-500.0,0.00013698,2]
[423820099,1780437032000,-1319.07,0.00013698,2]
[423820128,1780437032000,-500.0,0.00013698,2]
[423820104,1780437032000,-500.0,0.00013698,2]
[423820097,1780437032000,-325.44790114,0.00013698,2]
[423820056,1780437032000,-500.0,0.00013698,2]
[423820059,1780437032000,-500.0,0.00013698,2]
[423820075,1780437032000,-500.0,0.00013698,2]
[423820061,1780437032000,-500.0,0.00013698,2]
[423820070,1780437032000,-500.0,0.00013698,2]
[423820072,1780437032000,-861.27,0.00013698,2]
[423820074,1780437032000,-500.0,0.00013698,2]
[423820078,1780437032000,-500.0,0.00013698,2]
[423820062,1780437032000,-427.05655169,0.00013698,2]
[423820065,1780437032000,-72.94344831,0.00013698,2]
[423820067,1780437032000,-500.0,0.00013698,2]
[423820068,1780437032000,-283.08953976,0.00013698,2]
[423820080,1780437032000,-500.0,0.00013698,2]
[423820082,1780437032000,-500.0,0.00013698,2]
[423820086,1780437032000,-534.57,0.00013698,2]
[423820090,1780437032000,-0.57943283,0.00013698,2]
[423820091,1780437032000,-500.0,0.00013698,2]
[423820093,1780437032000,-627.95,0.00013698,2]
[423820077,1780437032000,-500.0,0.00013698,2]
[423820141,1780437033000,-500.0,0.00013972,2]
[423820139,1780437033000,-500.0,0.00013972,2]
[423820140,1780437033000,-500.0,0.00013972,2]
[423820136,1780437033000,-1000.0,0.00013699,2]
[423820130,1780437033000,-500.0,0.00013698,2]
[423820137,1780437033000,-515.036806,0.00013699,2]
[423820138,1780437033000,-500.0,0.00013972,2]
[423820135,1780437033000,-500.0,0.00013698,2]
[423820134,1780437033000,-500.0,0.00013698,2]
[423820129,1780437033000,-500.0,0.00013698,2]
[423820132,1780437033000,-500.0,0.00013698,2]
[423820133,1780437033000,-1323.77,0.00013698,2]
[423820143,1780437033000,-500.0,0.00013972,2]
[423820131,1780437033000,-500.0,0.00013698,2]
[423820142,1780437033000,-472.0913195,0.00013972,2]
[423820148,1780437033000,-500.0,0.00013972,2]
[423820145,1780437033000,-500.0,0.00013972,2]
[423820156,1780437033000,-66.5605506,0.00013972,2]
[423820144,1780437033000,-500.0,0.00013972,2]
[423820158,1780437033000,-179.24834641,0.00013972,2]
[423820153,1780437033000,-500.0,0.00013972,2]
[423820155,1780437033000,-366.89755947,0.00013972,2]
[423820154,1780437033000,-133.10244053,0.00013972,2]
[423820157,1780437033000,-254.19110299,0.00013972,2]
[423820151,1780437033000,-861.27,0.00013972,2]
[423820159,1780437033000,-255.3289256,0.00013972,2]
[423820150,1780437033000,-500.0,0.00013972,2]
[423820149,1780437033000,-500.0,0.00013972,2]
[423820147,1780437033000,-500.0,0.00013972,2]
[423820146,1780437033000,-500.0,0.00013972,2]
[423820152,1780437033000,-500.0,0.00013972,2]
[423820175,1780437038000,-500.0,0.00013972,2]
[423820176,1780437038000,-1863.65,0.00013972,2]
[423820174,1780437038000,-401.64896372,0.00013972,2]
[423820178,1780437038000,-1319.07,0.00013972,2]
[423820172,1780437038000,-279.2410744,0.00013972,2]
[423820173,1780437038000,-226.30103628,0.00013972,2]
[423820170,1780437038000,-2066.46076006,0.00013598,2]
[423820171,1780437038000,-286.13,0.00013698,2]
[423820181,1780437038000,-586.51,0.00013972,2]
[423820180,1780437038000,-500.0,0.00013972,2]
[423820191,1780437038000,-500.0,0.00013972,2]
[423820197,1780437038000,-500.0,0.00013972,2]
[423820194,1780437038000,-500.0,0.00013972,2]
[423820199,1780437038000,-500.0,0.00013972,2]
[423820201,1780437038000,-500.0,0.00013972,2]
[423820202,1780437038000,-500.0,0.00013972,2]
[423820185,1780437038000,-500.0,0.00013972,2]
[423820192,1780437038000,-871.26,0.00013972,2]
[423820183,1780437038000,-500.0,0.00013972,2]
[423820187,1780437038000,-1279.87,0.00013972,2]
[423820189,1780437038000,-631.99,0.00013972,2]
[423820195,1780437038000,-500.0,0.00013972,2]
[423820269,1780437039000,-500.0,0.0001452,2]
[423820266,1780437039000,-861.27,0.0001452,2]
[423820250,1780437039000,-167.53,0.00014246,2]
[423820263,1780437039000,-232.12,0.0001452,2]
[423820248,1780437039000,-500.0,0.00014246,2]
[423820251,1780437039000,-500.0,0.00014246,2]
[423820253,1780437039000,-500.0,0.00014246,2]
[423820262,1780437039000,-500.0,0.0001452,2]
[423820255,1780437039000,-500.0,0.00014246,2]
[423820279,1780437039000,-1319.07,0.0001452,2]
[423820260,1780437039000,-238.16375513,0.0001452,2]
[423820264,1780437039000,-500.0,0.0001452,2]
[423820268,1780437039000,-500.0,0.0001452,2]
[423820287,1780437039000,-631.99,0.0001452,2]
[423820271,1780437039000,-500.0,0.0001452,2]
[423820272,1780437039000,-500.0,0.0001452,2]
[423820283,1780437039000,-500.0,0.0001452,2]
[423820258,1780437039000,-500.0,0.0001452,2]
[423820285,1780437039000,-1279.87,0.0001452,2]
[423820277,1780437039000,-1863.65,0.0001452,2]
[423820274,1780437039000,-534.57,0.0001452,2]
[423820276,1780437039000,-627.95,0.0001452,2]
[423820288,1780437039000,-500.0,0.0001452,2]
[423820290,1780437039000,-871.26,0.0001452,2]
[423820292,1780437039000,-391.2,0.0001452,2]
[423820294,1780437039000,-500.0,0.0001452,2]
[423820296,1780437039000,-500.0,0.0001452,2]
[423820303,1780437039000,-161.41,0.00014794,2]
[423820281,1780437039000,-586.51,0.0001452,2]
[423820257,1780437039000,-1323.77,0.00014246,2]
[423820238,1780437039000,-500.0,0.00014246,2]
[423820237,1780437039000,-500.0,0.00014246,2]
[423820204,1780437039000,-500.0,0.00013972,2]
[423820206,1780437039000,-1323.77,0.00013972,2]
[423820207,1780437039000,-508.72528545,0.00013972,2]
[423820218,1780437039000,-500.0,0.00014246,2]
[423820220,1780437039000,-500.0,0.00014246,2]
[423820222,1780437039000,-861.27,0.00014246,2]
[423820224,1780437039000,-500.0,0.00014246,2]
[423820209,1780437039000,-500.0,0.00014246,2]
[423820226,1780437039000,-500.0,0.00014246,2]
[423820212,1780437039000,-500.0,0.00014246,2]
[423820300,1780437039000,-500.0,0.0001452,2]
[423820216,1780437039000,-500.0,0.00014246,2]
[423820214,1780437039000,-500.0,0.00014246,2]
[423820246,1780437039000,-500.0,0.00014246,2]
[423820211,1780437039000,-483.07049408,0.00014246,2]
[423820228,1780437039000,-500.0,0.00014246,2]
[423820229,1780437039000,-500.0,0.00014246,2]
[423820231,1780437039000,-627.95,0.00014246,2]
[423820232,1780437039000,-500.0,0.00014246,2]
[423820240,1780437039000,-631.99,0.00014246,2]
[423820230,1780437039000,-534.57,0.00014246,2]
[423820239,1780437039000,-1279.87,0.00014246,2]
[423820236,1780437039000,-586.51,0.00014246,2]
[423820244,1780437039000,-871.26,0.00014246,2]
[423820233,1780437039000,-1863.65,0.00014246,2]
[423820234,1780437039000,-1319.07,0.00014246,2]
[423820235,1780437039000,-500.0,0.00014246,2]
[423820242,1780437039000,-500.0,0.00014246,2]
[423820217,1780437039000,-500.0,0.00014246,2]
[423820298,1780437039000,-500.0,0.0001452,2]
[423820215,1780437039000,-500.0,0.00014246,2]
[423820305,1780437039000,-500.0,0.00014794,2]
[423820345,1780437039000,-1863.65,0.00015068,2]
[423820346,1780437039000,-1319.07,0.00015068,2]
[423820347,1780437039000,-586.51,0.00015068,2]
[423820348,1780437039000,-500.0,0.00015068,2]
[423820354,1780437039000,-500.0,0.00015068,2]
[423820349,1780437039000,-1279.87,0.00015068,2]
[423820350,1780437039000,-631.99,0.00015068,2]
[423820351,1780437039000,-500.0,0.00015068,2]
[423820353,1780437039000,-500.0,0.00015068,2]
[423820352,1780437039000,-871.26,0.00015068,2]
[423820358,1780437039000,-861.27,0.00015342,2]
[423820364,1780437039000,-627.95,0.00015342,2]
[423820365,1780437039000,-1863.65,0.00015342,2]
[423820356,1780437039000,-1323.77,0.00015068,2]
[423820360,1780437039000,-554.22,0.00015342,2]
[423820369,1780437039000,-1279.87,0.00015342,2]
[423820367,1780437039000,-586.51,0.00015342,2]
[423820357,1780437039000,-498.88,0.00015342,2]
[423820359,1780437039000,-500.0,0.00015342,2]
[423820368,1780437039000,-500.0,0.00015342,2]
[423820362,1780437039000,-500.0,0.00015342,2]
[423820361,1780437039000,-500.0,0.00015342,2]
[423820374,1780437039000,-500.0,0.00015342,2]
[423820373,1780437039000,-500.0,0.00015342,2]
[423820372,1780437039000,-871.26,0.00015342,2]
[423820370,1780437039000,-631.99,0.00015342,2]
[423820371,1780437039000,-500.0,0.00015342,2]
[423820309,1780437039000,-861.27,0.00014794,2]
[423820363,1780437039000,-534.57,0.00015342,2]
[423820355,1780437039000,-500.0,0.00015068,2]
[423820366,1780437039000,-1319.07,0.00015342,2]
[423820343,1780437039000,-534.57,0.00015068,2]
[423820344,1780437039000,-627.95,0.00015068,2]
[423820302,1780437039000,-1323.77,0.0001452,2]
[423820311,1780437039000,-500.0,0.00014794,2]
[423820313,1780437039000,-500.0,0.00014794,2]
[423820315,1780437039000,-500.0,0.00014794,2]
[423820317,1780437039000,-500.0,0.00014794,2]
[423820319,1780437039000,-534.57,0.00014794,2]
[423820321,1780437039000,-627.95,0.00014794,2]
[423820328,1780437039000,-500.0,0.00014794,2]
[423820325,1780437039000,-500.0,0.00014794,2]
[423820326,1780437039000,-1279.87,0.00014794,2]
[423820327,1780437039000,-631.99,0.00014794,2]
[423820322,1780437039000,-1863.65,0.00014794,2]
[423820324,1780437039000,-586.51,0.00014794,2]
[423820323,1780437039000,-1319.07,0.00014794,2]
[423820307,1780437039000,-546.16,0.00014794,2]
[423820336,1780437039000,-151.02,0.00015,2]
[423820330,1780437039000,-500.0,0.00014794,2]
[423820331,1780437039000,-201.31,0.00014794,2]
[423820332,1780437039000,-500.0,0.00014794,2]
[423820333,1780437039000,-500.0,0.00014794,2]
[423820334,1780437039000,-1323.77,0.00014794,2]
[423820337,1780437039000,-500.0,0.00015068,2]
[423820341,1780437039000,-500.0,0.00015068,2]
[423820338,1780437039000,-861.27,0.00015068,2]
[423820329,1780437039000,-871.26,0.00014794,2]
[423820339,1780437039000,-500.0,0.00015068,2]
[423820340,1780437039000,-500.0,0.00015068,2]
[423820335,1780437039000,-156.99559927,0.000149,2]
[423820342,1780437039000,-500.0,0.00015068,2]
[423820415,1780437040000,-500.0,0.00016164,2]